bitfinex-derivatives/quotes_ETHF0:USTF0_20250810
["timestamp","ask_amount","ask_price","bid_price","bid_amount"]
[1754815090501,0.2693,4206.8,4206.7,1.5678]
[1754815090697,3.2078,4207.0,4206.9,1.5678]
[1754815091197,3.4771,4207.0,4206.9,1.5678]
[1754815091399,4.1107,4207.0,4206.9,1.2991]
[1754815091593,4.7555,4207.0,4206.9,1.0381]
[1754815092293,4.7555,4207.0,4206.9,0.8511]
[1754815092994,4.7555,4207.0,4206.9,1.2991]
[1754815093199,4.3675,4207.0,4206.9,1.2991]
[1754815093495,4.7555,4207.0,4206.9,1.2991]
[1754815093798,4.7555,4207.0,4206.6,0.8908]
[1754815093799,0.1812,4206.7,4206.6,0.8908]
[1754815093999,1.5477,4206.7,4206.6,0.2617]
[1754815094401,1.5477,4206.7,4206.6,1.2991]
[1754815094605,1.5477,4206.7,4206.5,0.47541]
[1754815094606,0.2693,4206.9,4206.5,0.47541]
[1754815094900,3.2078,4207.0,4206.8,0.6298]
[1754815095100,3.4771,4207.0,4206.9,1.2991]
[1754815095301,3.4771,4207.0,4206.9,1.5678]
[1754815097501,3.6583,4207.0,4206.9,1.5678]
[1754815097698,0.7284,4207.0,4206.9,1.5678]
[1754815098503,0.9029,4207.0,4206.9,1.5678]
[1754815098706,1.1597,4207.0,4206.9,1.2991]
[1754815100111,1.5477,4207.0,4206.9,1.2991]
[1754815101404,0.1812,4207.8,4207.7,0.3681]
[1754815101707,1.2784,4207.8,4207.7,1.2991]
[1754815101900,1.5477,4207.8,4207.7,1.2991]
[1754815102795,1.1597,4207.8,4207.7,1.2991]
[1754815102999,18.537,4208.1,4207.8,0.47527]
[1754815103201,0.9029,4208.1,4208.0,1.2991]
[1754815103410,0.625,4208.1,4208.0,1.5678]
[1754815103706,3.2078,4208.2,4208.1,1.5678]
[1754815104006,3.6583,4208.2,4208.1,1.5678]
[1754815104208,3.2078,4208.2,4208.1,1.5678]
[1754815104410,0.9029,4208.5,4208.4,1.2991]
[1754815104601,3.4771,4208.8,4208.5,0.47519]
[1754815104800,3.6583,4208.8,4208.7,0.6298]
[1754815105003,3.6583,4208.8,4208.7,1.2991]
[1754815105203,3.2078,4208.8,4208.7,1.5678]
[1754815105605,3.4771,4208.8,4208.7,1.5678]
[1754815105801,0.5472,4209.2,4208.7,0.448]
[1754815106008,0.2693,4209.2,4209.1,2.04292]
[1754815106502,0.7284,4209.4,4209.3,0.1811]
[1754815106706,1.5477,4209.4,4209.3,1.2991]
[1754815106908,1.5477,4209.4,4209.3,1.0381]
[1754815107104,1.5477,4209.4,4209.3,0.8511]
[1754815107702,1.5477,4209.4,4209.3,1.0381]
[1754815107899,1.2698,4209.4,4209.3,1.2991]
[1754815108204,1.5477,4209.4,4209.3,0.2617]
[1754815108411,1.5477,4209.1,4209.0,1.0381]
[1754815108702,1.5477,4209.1,4209.0,0.8511]
[1754815108906,1.5477,4209.1,4209.0,1.0381]
[1754815109700,1.5477,4209.1,4209.0,1.2991]
[1754815110404,1.5477,4209.4,4209.3,1.2991]
[1754815111506,0.4505,4209.4,4209.3,1.5678]
[1754815112112,0.9029,4209.4,4209.3,1.5678]
[1754815112310,1.1597,4209.4,4209.3,1.5678]
[1754815113415,1.1597,4209.4,4209.3,1.2991]
[1754815113610,1.5477,4209.4,4209.3,1.2991]
[1754815114413,1.5477,4209.4,4208.6,0.4428]
[1754815114414,1.1597,4208.7,4208.6,0.4428]
[1754815114612,1.3665,4208.1,4208.0,1.14525]
[1754815114908,1.5477,4208.8,4208.7,0.8511]
[1754815115713,1.5477,4208.8,4208.7,1.032]
[1754815116115,1.5477,4208.8,4208.7,0.2617]
[1754815117617,0.2619,4208.1,4208.0,1.0276]
[1754815117913,1.568,4208.1,4208.0,0.2545]
[1754815118115,0.6261,4207.9,4207.8,3.2078]
[1754815118417,2.04326,4207.9,4207.6,0.4187]
[1754815118616,1.3894,4207.8,4207.7,0.2545]
[1754815118817,1.568,4207.8,4207.7,0.2545]
[1754815119115,1.1638,4207.3,4207.2,4.0545]
[1754815119311,1.568,4207.3,4207.2,3.2078]
[1754815119706,1.568,4207.3,4207.2,3.4623]
[1754815119907,1.568,4207.3,4207.2,0.2545]
[1754815120418,1.2876,4206.8,4206.7,4.24196199]
[1754815120619,1.568,4206.8,4206.7,4.49636199]
[1754815121114,1.568,4206.8,4206.7,3.21436199]
[1754815122217,6.1786,4206.8,4204.2,1.70469338]
[1754815122513,2.45571103,4207.8,4202.5,4.26173346]
[1754815122514,3.2078,4206.2,4206.1,1.282]
[1754815122711,3.4005,4206.8,4206.7,1.5572]
[1754815122916,3.4231,4206.8,4206.7,1.5572]
[1754815123510,3.4231,4206.8,4206.7,1.1385]
[1754815123712,3.6804,4206.8,4206.7,1.1385]
[1754815124110,0.0141,4206.6,4205.1,0.9483]
[1754815124311,3.2219,4206.2,4205.2,1.09860315]
[1754815124513,3.2219,4206.2,4205.4,0.6731]
[1754815124716,0.1786,4205.6,4205.5,1.5572]
[1754815125021,0.4726,4205.6,4205.5,0.965]
[1754815125419,0.4726,4205.6,4205.5,0.5296]
[1754815126217,0.1786,4205.2,4205.1,1.5572]
[1754815126421,3.2078,4205.7,4205.2,1.42387]
[1754815126721,3.2219,4205.7,4205.2,0.47557]
[1754815126922,0.1786,4205.5,4205.4,0.6089]
[1754815127513,0.1786,4205.5,4205.4,1.5572]
[1754815128620,3.2078,4205.7,4205.4,1.5572]
[1754815128814,3.2078,4205.7,4205.6,1.5572]
[1754815129014,3.2078,4206.2,4206.1,1.5572]
[1754815130521,3.3864,4206.2,4206.1,1.5572]
[1754815131325,3.409,4206.2,4206.1,1.5572]
[1754815131518,3.6804,4206.2,4206.1,1.5572]
[1754815132218,3.6804,4206.2,4206.1,1.1385]
[1754815132612,0.47546,4206.1,4205.9,0.2752]
[1754815132814,0.4726,4206.0,4205.9,0.5296]
[1754815133220,0.47549,4205.9,4205.4,0.4187]
[1754815133419,3.3864,4205.6,4205.5,1.5572]
[1754815133924,3.6804,4205.6,4205.5,1.1385]
[1754815135324,3.6804,4205.6,4205.5,1.5572]
[1754815136226,3.4231,4205.6,4205.5,1.5572]
[1754815136527,3.2078,4205.6,4204.6,0.75083]
[1754815136722,0.67679,4205.0,4204.9,0.6089]
[1754815136927,0.94819,4205.0,4204.9,1.1385]
[1754815138034,3.2078,4205.1,4205.0,2.03279]
[1754815138930,3.2078,4205.1,4205.0,1.5572]
[1754815139626,3.68338,4205.1,4204.7,0.5296]
[1754815139825,0.1786,4204.8,4204.7,1.5572]
[1754815140021,0.2012,4204.8,4204.7,1.5572]
[1754815140225,3.2078,4205.1,4204.7,2.03281]
[1754815140427,3.2078,4205.1,4205.0,1.5572]
[1754815145329,3.3864,4205.1,4205.0,1.5572]
[1754815146131,3.2078,4205.1,4205.0,1.5572]
[1754815147031,3.3832,4205.8,4205.7,1.5723]
[1754815147431,3.4232,4205.8,4205.7,1.5723]
[1754815147930,3.2078,4205.8,4205.7,1.5723]
[1754815148333,2.7861,4205.8,4205.7,1.5723]
[1754815148534,2.3644,4205.8,4205.7,1.5723]
[1754815148726,0.3746,4205.8,4205.7,1.5723]
[1754815148931,18.55,4206.6,4206.2,0.3743]
[1754815149131,0.7043,4206.6,4206.5,0.84972]
[1754815149335,1.0923,4206.6,4206.5,1.11762]
[1754815149731,1.2832,4206.6,4206.5,0.6422]
[1754815149933,1.5515,4206.6,4206.5,0.6422]
[1754815152437,0.519692,4207.2,4206.6,0.47541]
[1754815152635,4.03723256,4207.3,4207.2,0.3743]
[1754815152835,4.1131,4207.3,4207.2,0.6422]
[1754815153235,4.7593,4207.3,4207.2,0.6422]
[1754815153430,0.7043,4207.5,4207.4,0.6422]
[1754815153634,0.7043,4207.5,4207.3,0.74783]
[1754815153635,0.637,4207.5,4207.3,0.47533]
[1754815153840,1.5515,4207.4,4207.3,1.11753]
[1754815154841,1.5515,4207.4,4207.3,0.6422]
[1754815155341,4.7593,4207.9,4207.8,0.3743]
[1754815155735,1.12147,4207.8,4207.0,0.74326]
[1754815155934,3.4761,4207.9,4207.0,0.74326]
[1754815155935,0.4461,4207.2,4207.1,0.6422]
[1754815156142,1.0923,4207.2,4207.1,0.6422]
[1754815156642,0.7043,4207.2,4207.1,0.9147]
[1754815156837,0.388,4207.5,4207.2,0.47534]
[1754815157142,0.2582,4207.6,4207.5,0.9147]
[1754815157337,3.9121,4207.9,4207.8,0.9147]
[1754815157644,3.466,4207.9,4207.8,0.9147]
[1754815158329,0.2582,4207.9,4207.8,0.9147]
[1754815159540,1.2832,4207.9,4207.8,0.9147]
[1754815159739,1.2832,4207.9,4207.8,0.6422]
[1754815162036,1.5515,4207.9,4207.8,0.6422]
[1754815162636,0.637,4207.3,4207.2,3.68314]
[1754815162941,1.5515,4207.3,4207.2,3.87294]
[1754815163141,1.5515,4207.3,4207.2,4.32534]
[1754815164339,1.5515,4207.3,4207.2,3.3976]
[1754815164544,1.5515,4207.3,4207.2,0.6422]
[1754815167443,1.5515,4207.3,4207.2,0.2679]
[1754815167642,0.2582,4207.5,4206.9,0.3743]
[1754815167833,1.5515,4207.4,4207.3,0.6422]
[1754815168438,1.5515,4207.4,4207.3,0.1898]
[1754815171547,1.5515,4207.2,4207.1,0.47535]
[1754815171741,1.5515,4207.2,4207.1,1.39005]
[1754815171742,0.2582,4207.2,4207.1,1.39005]
[1754815172144,1.025,4207.6,4207.5,1.11751]
[1754815172750,1.5515,4207.6,4207.5,1.11751]
[1754815173244,1.5515,4207.6,4207.5,0.6422]
[1754815174347,2.02679,4207.6,4207.5,0.1898]
[1754815174543,0.47532,4207.4,4206.9,0.2679]
[1754815174742,0.637,4207.0,4206.9,0.3743]
[1754815174949,1.5515,4207.0,4206.9,0.1898]
[1754815175255,1.18814,4208.0,4206.7,0.179]
[1754815175256,1.5945,4206.8,4206.7,0.179]
[1754815175950,1.1762,4206.5,4206.4,0.6229]
[1754815176151,1.5945,4206.5,4206.4,0.6229]
[1754815177655,1.3259,4206.5,4206.4,0.9033]
[1754815178653,1.5945,4206.5,4206.4,0.6229]
[1754815182654,1.3259,4206.5,4206.4,0.9033]
[1754815182960,0.2735,4206.8,4206.7,0.9033]
[1754815183854,0.2649,4207.0,4206.9,0.9033]
[1754815184562,0.7215,4207.0,4206.9,0.9033]
[1754815184957,1.3259,4207.0,4206.9,0.9033]
[1754815185152,1.5945,4207.0,4206.9,0.9033]
[1754815185357,0.2649,4207.0,4206.9,0.9033]
[1754815185560,0.2649,4207.0,4206.9,4.1111]
[1754815185757,1.3259,4207.0,4206.9,4.1111]
[1754815185955,1.5945,4207.0,4206.9,0.3595]
[1754815187659,1.5945,4207.0,4206.9,0.83487]
[1754815188060,1.5945,4207.0,4206.9,0.47537]
[1754815188662,1.5945,4207.0,4206.9,0.65437]
[1754815188864,1.5945,4207.0,4206.9,0.179]
[1754815189165,0.6427,4206.8,4206.7,0.65439]
[1754815189363,1.5945,4206.8,4206.7,0.65439]
[1754815189953,1.5945,4206.8,4206.7,1.09829]
[1754815190568,1.5945,4206.8,4206.7,0.6229]
[1754815191157,0.9518,4206.7,4206.6,0.4754]
[1754815191458,1.5945,4206.7,4206.6,0.4754]
[1754815191657,0.6427,4206.7,4206.6,0.6229]
[1754815192262,1.5945,4206.7,4206.6,0.6229]
[1754815192461,1.5945,4206.7,4206.5,0.47542]
[1754815192659,0.6427,4206.7,4206.5,0.47542]
[1754815192860,1.5945,4206.6,4206.5,1.09832]
[1754815193066,1.1398,4206.6,4206.5,1.37872]
[1754815193468,4.59446,4207.1,4207.0,0.3595]
[1754815193667,5.01276,4207.1,4207.0,0.179]
[1754815193966,4.5374,4207.1,4207.0,0.179]
[1754815194166,4.8023,4207.1,4207.0,0.6229]
[1754815195666,4.8023,4207.1,4207.0,0.3595]
[1754815197168,4.8023,4207.1,4207.0,0.6229]
[1754815198472,4.8023,4207.1,4207.0,0.179]
[1754815199273,1.061,4206.8,4206.7,0.4424]
[1754815199473,1.5945,4206.8,4206.7,0.4424]
[1754815199671,1.5945,4206.8,4206.7,0.6229]
[1754815200670,1.5945,4206.8,4206.7,1.0983]
[1754815200871,1.5945,4206.8,4206.7,0.6229]
[1754815201867,0.6427,4206.2,4206.1,0.3595]
[1754815202068,1.5945,4206.2,4206.1,0.51078861]
[1754815202474,1.5945,4206.2,4206.1,0.77418861]
[1754815202670,0.6427,4206.0,4205.9,1.96809338]
[1754815202866,1.5945,4206.0,4205.9,0.2634]
[1754815203066,1.5945,4206.0,4205.9,0.6229]
[1754815203475,3.2078,4206.3,4206.2,0.6229]
[1754815203676,4.5337,4206.3,4206.2,0.6229]
[1754815203875,4.8023,4206.3,4206.2,0.6229]
[1754815204075,3.2078,4206.3,4206.2,0.8982]
[1754815204469,0.1861,4206.4,4206.3,0.83494]
[1754815204674,0.9113,4206.4,4206.3,1.09834]
[1754815205073,1.5945,4206.4,4206.3,0.2634]
[1754815205377,1.5657,4206.3,4206.2,0.47545]
[1754815205876,1.5657,4205.9,4205.8,3.3853]
[1754815206279,1.5657,4205.9,4205.8,3.2078]
[1754815206481,1.5657,4205.9,4205.8,0.3668]
[1754815206683,1.5657,4205.9,4205.8,0.6477]
[1754815208383,0.9351,4205.8,4205.6,0.47552]
[1754815208575,1.5657,4205.4,4205.3,1.12325]
[1754815208776,1.5657,4205.4,4205.3,1.27446943]
[1754815209281,1.5657,4205.4,4205.3,0.47555]
[1754815209782,1.5657,4205.4,4205.3,0.65305]
[1754815210483,1.5657,4205.4,4205.3,0.1775]
[1754815210678,1.5657,4205.4,4205.2,3.2078]
[1754815210878,1.5657,4205.2,4205.1,1.12327]
[1754815211083,1.5657,4205.5,4205.4,0.84234]
[1754815211479,1.5657,4205.5,4205.4,1.12324]
[1754815211871,4.54779,4205.9,4205.8,0.3668]
[1754815212076,4.5139,4205.9,4205.8,0.6477]
[1754815212478,4.7735,4205.9,4205.8,0.9197]
[1754815213175,4.7735,4205.9,4205.8,0.6477]
[1754815213776,4.7735,4205.9,4205.8,0.1775]
[1754815213981,1.5657,4205.9,4205.8,0.1775]
[1754815215884,1.5657,4205.9,4205.8,0.4584]
[1754815216084,1.5657,4205.9,4205.8,0.6477]
[1754815217479,1.5657,4205.8,4205.7,0.1775]
[1754815217685,1.5657,4205.8,4205.7,0.6477]
[1754815220085,1.5657,4205.8,4205.7,0.1893]
[1754815220277,1.5657,4205.8,4205.7,0.3668]
[1754815220484,0.6306,4205.8,4205.4,0.75644]
[1754815220677,0.6306,4205.5,4205.4,0.84234]
[1754815220882,1.5657,4205.5,4205.4,1.39524]
[1754815221883,0.7012,4205.5,4205.4,1.39524]
[1754815224580,1.1119,4205.5,4205.4,1.39524]
[1754815225387,1.5657,4205.5,4205.4,0.93394]
[1754815225581,1.5657,4205.5,4205.4,1.12324]
[1754815226181,1.5657,4205.5,4205.4,1.39524]
[1754815229484,21.00690103,4207.1,4205.3,3.2078]
[1754815229686,0.4416,4205.4,4205.3,4.13745]
[1754815229884,0.8523,4205.4,4205.3,4.46881374]
[1754815230091,1.1119,4205.4,4205.3,4.46881374]
[1754815230390,1.1119,4205.4,4205.3,4.74971374]
[1754815232196,0.6306,4206.0,4205.9,0.65299]
[1754815232381,1.10607,4206.0,4205.9,0.6477]
[1754815232581,0.6306,4206.0,4205.9,0.6477]
[1754815232786,1.5657,4206.0,4205.9,0.6477]
[1754815233089,3.2078,4206.5,4206.3,0.1775]
[1754815233090,0.8954,4206.4,4206.3,0.1775]
[1754815233292,0.8954,4206.4,4206.3,0.93384]
[1754815233492,0.8954,4206.4,4206.3,1.12314]
[1754815233683,1.5657,4206.4,4206.3,1.12314]
[1754815234197,1.3009,4206.4,4206.3,1.38794]
[1754815234595,0.8902,4206.4,4206.3,1.38794]
[1754815234794,3.2078,4206.5,4206.4,0.9125]
[1754815235296,0.2596,4206.7,4206.6,0.8833]
[1754815235692,1.2861,4206.7,4206.6,0.8833]
[1754815235891,1.5544,4206.7,4206.6,0.8833]
[1754815237097,1.1195,4206.9,4206.7,1.0105]
[1754815237303,0.8652,4207.3,4207.2,0.47534]
[1754815237509,1.307,4207.3,4207.2,0.6212]
[1754815237796,1.5659,4207.3,4207.2,0.4492]
[1754815237999,1.5659,4207.3,4207.2,0.1762]
[1754815238394,1.5659,4207.3,4207.0,0.47536]
[1754815238606,1.5659,4207.1,4207.0,0.4492]
[1754815239010,1.5659,4207.1,4207.0,0.6212]
[1754815246509,2.04125,4207.1,4207.0,0.6212]
[1754815246712,1.5659,4207.1,4207.0,0.6212]
[1754815247506,1.5659,4207.1,4207.0,1.09656]
[1754815249014,1.5659,4207.1,4207.0,0.8833]
[1754815249310,0.8776,4207.1,4207.0,0.8833]
[1754815249698,0.6995,4207.1,4207.0,4.0911]
[1754815250111,0.2589,4207.1,4207.0,4.0911]
[1754815250806,0.6789,4207.3,4207.2,0.8833]
[1754815251501,1.1195,4207.3,4207.2,0.8833]
[1754815251901,1.5659,4207.3,4207.2,0.8833]
[1754815252505,1.5659,4207.3,4207.2,0.6212]
[1754815255709,1.5659,4207.3,4207.2,0.8833]
[1754815257311,1.2976,4207.3,4207.2,0.8833]
[1754815257505,1.5659,4207.3,4207.2,0.8833]
[1754815258610,1.5659,4207.3,4207.2,0.6212]
[1754815259406,1.5659,4207.3,4207.2,1.09654]
[1754815259607,0.6187,4207.6,4207.5,0.4753]
[1754815259918,1.5659,4207.6,4207.5,1.3586]
[1754815260103,3.68304,4208.1,4207.7,0.47528]
[1754815260308,0.8776,4208.6,4208.5,0.47519]
[1754815260512,1.2976,4208.6,4208.5,1.09639]
[1754815260709,1.2976,4208.6,4208.5,1.35849]
[1754815260905,1.5659,4208.6,4208.5,0.6212]
[1754815262020,0.73396,4209.7,4209.1,0.47512]
[1754815262310,0.9472,4209.1,4208.6,3.2078]
[1754815262507,1.5659,4208.7,4208.6,3.2078]
[1754815262708,1.5659,4208.7,4208.6,3.829]
[1754815263809,0.6995,4208.7,4208.6,4.0911]
[1754815264009,0.526,4208.7,4208.6,4.0911]
[1754815264227,0.2589,4208.7,4208.6,4.0911]
[1754815265011,3.2078,4209.2,4208.7,0.47517]
[1754815265312,1.5547,4209.1,4209.0,0.6251]
[1754815265608,0.2631,4209.1,4209.0,0.3482]
[1754815266019,0.6644,4209.4,4209.3,0.3545]
[1754815266220,0.6644,4209.4,4209.3,4.1002]
[1754815266423,1.5577,4209.7,4209.6,1.10646]
[1754815266810,0.2631,4209.7,4209.6,1.10646]
[1754815267018,2.3006,4210.0,4209.9,1.10643]
[1754815267212,2.5577,4210.0,4209.9,1.36743]
[1754815267613,2.5577,4210.0,4209.9,0.8924]
[1754815268507,2.5577,4210.0,4209.9,0.6314]
[1754815268707,0.4013,4209.7,4209.3,3.2078]
[1754815268911,1.5577,4209.4,4209.3,3.2078]
[1754815269116,1.5577,4208.8,4208.3,0.2769]
[1754815269316,0.2631,4208.7,4208.6,0.75208]
[1754815269614,1.5577,4209.4,4209.1,0.47512]
[1754815269813,1.5577,4208.8,4208.7,3.14238736]
[1754815270013,1.5577,4208.7,4208.6,3.2078]
[1754815270218,1.5577,4208.7,4208.6,3.3891]
[1754815270821,1.5577,4208.7,4208.6,3.666]
[1754815271621,1.5577,4208.7,4208.6,3.8392]
[1754815272119,1.3006,4209.1,4209.0,0.64833]
[1754815272323,1.5577,4209.1,4209.0,0.82963]
[1754815272514,0.4013,4209.7,4209.3,0.3545]
[1754815272718,0.4013,4209.7,4208.9,1.18788]
[1754815272719,1.5577,4209.7,4209.6,0.3545]
[1754815273014,1.5577,4209.7,4209.6,0.82957]
[1754815273217,4.2078,4210.0,4209.9,0.47503]
[1754815273413,5.7655,4210.0,4209.9,1.10643]
[1754815273720,5.5084,4210.0,4209.9,1.36753]
[1754815273917,5.5084,4210.0,4209.9,1.10643]
[1754815274117,2.5577,4210.0,4209.7,3.2078]
[1754815274316,2.5577,4210.0,4208.7,1.18792]
[1754815274317,0.6362,4209.3,4209.2,3.86421]
[1754815274623,1.5577,4209.3,4209.2,3.68291]
[1754815275018,1.3006,4209.3,4209.2,4.31431]
[1754815275317,0.6644,4209.5,4209.3,0.47509]
[1754815275515,0.6584,4209.3,4209.2,0.47511]
[1754815275719,1.5577,4209.3,4209.2,0.47511]
[1754815275918,1.5577,4209.3,4209.2,0.65641]
[1754815276120,0.8993,4209.8,4209.7,0.47506]
[1754815276318,1.5577,4209.8,4209.7,0.65636]
[1754815276616,1.114,4209.9,4209.8,0.6314]
[1754815276813,1.0,4210.0,4209.8,4.1003]
[1754815277022,1.0,4210.0,4209.9,0.8925]
[1754815277524,1.2631,4210.0,4209.9,0.8925]
[1754815278724,1.7127,4210.0,4209.9,0.8925]
[1754815279322,2.114,4210.0,4209.9,0.8925]
[1754815280117,1.2631,4210.0,4209.9,0.8925]
[1754815280322,1.0,4210.0,4209.9,0.8925]
[1754815280723,1.2631,4210.0,4209.9,0.8925]
[1754815281423,1.0,4210.0,4209.9,0.8925]
[1754815284927,1.2631,4210.0,4209.9,0.8925]
[1754815286025,1.0,4210.0,4209.9,0.8925]
[1754815286329,1.0,4210.0,4209.9,4.39124487]
[1754815286525,1.0,4210.0,4209.9,10.39124487]
[1754815287122,1.2631,4210.0,4209.9,4.39124487]
[1754815287330,2.5577,4210.0,4209.9,4.13014487]
[1754815287528,2.5577,4210.0,4209.9,0.47503]
[1754815288933,1.5577,4209.5,4209.4,0.47509]
[1754815289831,1.5577,4209.5,4209.3,3.2078]
[1754815290025,1.5577,4209.4,4209.3,3.2078]
[1754815290735,1.5577,4209.4,4209.3,3.6829]
[1754815291232,1.5577,4209.4,4209.3,4.0374]
[1754815291432,1.5577,4209.4,4209.3,4.99]
[1754815291927,1.5577,4209.4,4209.3,4.0374]
[1754815292134,1.5577,4209.4,4209.3,3.8642]
[1754815292432,1.5577,4209.4,4209.3,3.2078]
[1754815293832,0.8993,4209.4,4209.3,4.5149]
[1754815294033,1.5577,4209.4,4209.3,3.2078]
[1754815295735,1.5577,4209.4,4209.3,4.5047]
[1754815297435,1.5577,4209.4,4209.3,4.1074]
[1754815297628,1.5577,4209.4,4209.3,3.2078]
[1754815297939,0.6291,4209.2,4209.1,0.47512]
[1754815298238,1.5623,4209.1,4209.0,0.47514]
[1754815300240,1.5623,4208.8,4208.7,0.47516]
[1754815300633,1.5623,4208.8,4208.7,0.65376]
[1754815301040,1.5623,4208.8,4208.7,0.92766]
[1754815301343,1.5623,4208.8,4208.5,3.68299]
[1754815301640,1.5623,4208.7,4208.6,1.2996]
[1754815301943,1.5623,4208.7,4208.6,1.0257]
[1754815302843,1.5623,4208.6,4208.5,3.86159]
[1754815303040,1.5623,4208.6,4208.5,4.86334153]
[1754815303344,0.9332,4208.5,4208.4,0.4752]
[1754815303642,1.5623,4208.5,4208.4,0.6538]
[1754815304243,1.5623,4208.5,4208.4,1.5009]
[1754815304440,1.5623,4208.5,4208.4,1.7748]
[1754815305349,1.5623,4208.5,4208.4,0.4752]
[1754815306136,1.3921,4208.4,4208.3,0.47521]
[1754815306338,1.5623,4208.4,4208.3,0.47521]
[1754815307143,1.5623,4208.4,4208.3,1.77481]
[1754815307739,0.9398,4208.4,4208.3,2.03011]
[1754815307942,0.2569,4208.4,4208.3,2.03011]
[1754815308446,0.4378,4208.4,4208.3,2.03011]
[1754815309847,0.7158,4208.4,4208.3,2.03011]
[1754815310048,1.5623,4208.4,4208.3,1.77481]
[1754815310546,0.4589,4208.1,4208.0,3.2078]
[1754815310739,1.1878,4209.2,4207.5,0.2553]
[1754815310740,0.6291,4207.8,4207.7,0.92778]
[1754815310944,1.5623,4207.8,4207.7,0.92778]
[1754815311146,1.5623,4207.8,4207.5,3.2078]
[1754815311355,0.6291,4207.6,4207.5,3.6831]
[1754815311550,1.5623,4207.6,4207.5,3.6831]
[1754815312250,1.5623,4207.6,4207.5,3.2078]
[1754815312744,1.5623,4207.6,4207.5,3.3837]
[1754815313147,1.5623,4207.6,4207.5,3.2078]
[1754815316052,0.1809,4207.6,4207.5,3.8362]
[1754815316354,1.2909,4207.9,4207.8,1.2996]
[1754815316549,1.5623,4207.9,4207.8,1.2996]
[1754815317455,0.2569,4208.2,4207.5,3.4631]
[1754815317761,1.5623,4208.2,4208.1,1.77484]
[1754815318255,0.886,4208.2,4208.1,2.03014]
[1754815319155,1.5623,4208.2,4208.1,1.77484]
[1754815323258,1.5623,4208.2,4208.1,2.03014]
[1754815324857,1.3921,4208.2,4208.1,2.03014]
[1754815325053,1.78057,4208.7,4208.6,1.2996]
[1754815325253,1.3054,4208.7,4208.6,1.2996]
[1754815325660,1.5822,4208.7,4208.6,1.3105]
[1754815326560,1.5822,4208.7,4208.6,1.5673]
[1754815326561,0.9059,4208.7,4208.6,1.5673]
[1754815326858,3.4846,4209.0,4208.9,2.03905]
[1754815327255,3.6674,4209.0,4208.9,2.03905]
[1754815327559,4.5297,4209.0,4208.9,2.03905]
[1754815327759,4.789,4209.0,4208.9,1.78225]
[1754815328855,1.5812,4208.6,4208.5,3.68299]
[1754815329060,1.5812,4208.6,4208.5,3.83775243]
[1754815329361,1.5812,4208.6,4208.5,5.14485243]
[1754815329563,1.5812,4208.6,4208.5,5.14488288]
[1754815329952,1.5812,4208.6,4208.5,4.58159]
[1754815330153,1.5812,4208.6,4208.5,0.82839]
[1754815330357,1.5812,4208.6,4208.5,0.1811]
[1754815331265,1.5812,4208.6,4208.5,0.625]
[1754815331463,1.5812,4208.6,4208.5,1.3071]
[1754815332765,0.7335,4208.6,4208.5,1.5639]
[1754815334162,1.3219,4208.6,4208.5,1.0335]
[1754815334366,1.5812,4208.6,4208.5,1.3071]
[1754815337464,0.9098,4208.6,4208.5,1.5639]
[1754815337664,3.3906,4209.0,4208.9,1.3071]
[1754815337864,4.789,4209.0,4208.9,1.3071]
[1754815338063,4.789,4209.0,4208.9,0.1811]
[1754815338465,4.789,4209.0,4208.8,0.47516]
[1754815338466,0.633,4208.7,4208.6,0.47518]
[1754815338669,0.633,4208.7,4208.5,0.47519]
[1754815338871,0.8923,4208.6,4208.5,0.47519]
[1754815339072,1.5812,4208.6,4208.5,0.62990516]
[1754815339264,3.6674,4209.0,4208.9,0.47515]
[1754815339469,4.3534,4209.0,4208.9,1.78225]
[1754815339772,4.789,4209.0,4208.9,1.78225]
[1754815339962,0.7335,4209.0,4208.9,2.03905]
[1754815340573,1.3219,4209.3,4209.2,1.10191]
[1754815340767,1.5812,4209.3,4209.2,1.78221]
[1754815340966,1.5812,4209.3,4209.2,2.03901]
[1754815341476,1.3219,4209.3,4209.2,2.03901]
[1754815341774,0.2768,4209.3,4209.2,2.03901]
[1754815341975,0.7335,4209.3,4209.2,2.03901]
[1754815342571,3.4846,4209.5,4209.4,0.6268]
[1754815342772,3.4846,4209.5,4209.4,1.5639]
[1754815344277,0.2768,4209.5,4209.4,1.5639]
[1754815344979,0.4596,4209.5,4209.4,1.5639]
[1754815345173,1.1456,4209.5,4209.4,1.5639]
[1754815345379,1.5812,4209.5,4209.4,1.5639]
[1754815345678,0.2768,4209.5,4209.4,1.5639]
[1754815346071,0.5949,4209.8,4209.7,1.5639]
[1754815346269,1.633,4210.0,4209.9,1.3071]
[1754815346582,1.633,4210.0,4209.9,4.7717]
[1754815346878,2.3219,4210.0,4209.9,4.7717]
[1754815347180,1.4596,4210.0,4209.9,4.7717]
[1754815347372,2.3219,4210.0,4209.9,4.9271263]
[1754815347576,2.5812,4210.0,4209.9,4.9271263]
[1754815347975,2.1456,4210.0,4209.9,4.9271263]
[1754815348280,2.5812,4210.0,4209.9,4.6703263]
[1754815348481,2.5812,4210.0,4209.9,4.5149]
[1754815348876,2.5812,4210.0,4209.9,3.3889]
[1754815349073,1.5812,4209.6,4209.5,0.47508]
[1754815350877,1.5812,4209.6,4209.4,0.47509]
[1754815351079,1.4049,4209.5,4209.4,0.47509]